bitfinex/quotes_ETHUSD_20241001
["timestamp","ask_amount","ask_price","bid_price","bid_amount"]
[1727773492200,3.77702,2647.6,2647.2,23.83325348]
[1727773492404,1.18040205,2647.6,2647.2,23.83325348]
[1727773492605,4.95728205,2647.7,2647.2,23.83325348]
[1727773492847,1.18040205,2647.6,2647.2,23.83325348]
[1727773493641,4.95741205,2647.6,2647.2,20.05574348]
[1727773494352,3.77716,2647.5,2647.2,18.45]
[1727773495146,4.95742205,2647.6,2647.2,20.05574348]
[1727773495500,3.77717,2647.5,2647.2,20.05574348]
[1727773496255,1.18040205,2647.6,2647.2,26.67511683]
[1727773496448,6.53119145,2647.7,2647.3,4.56921]
[1727773496658,8.73427205,2647.7,2647.3,4.56921]
[1727773496947,8.73427205,2647.7,2647.3,0.7918]
[1727773497150,4.95732205,2647.7,2647.3,7.69363868]
[1727773497319,8.73427205,2647.7,2647.3,7.69363868]
[1727773497514,4.95732205,2647.7,2647.3,7.69363868]
[1727773498250,3.77706,2647.6,2647.3,3.91626868]
[1727773498452,3.77716,2647.5,2647.3,3.91626868]
[1727773498673,3.77726,2647.5,2647.2,18.45]
[1727773498869,5.05209339,2647.5,2647.2,18.45]
[1727773500119,4.95766205,2647.5,2647.2,18.45]
[1727773500624,1.18040205,2647.6,2647.2,22.22751]
[1727773500820,1.18040205,2647.6,2647.3,4.06813883]
[1727773501047,4.95742205,2647.6,2647.3,4.06813883]
[1727773501362,4.95742205,2647.6,2647.3,2.46239535]
[1727773504632,3.77724,2647.5,2647.3,2.46239535]
[1727773504868,3.77724,2647.5,2647.2,18.45]
[1727773504869,4.95764205,2647.5,2647.2,18.45]
[1727773505966,1.18040205,2647.5,2647.2,18.45]
[1727773506167,1.18040205,2647.5,2647.2,22.22755]
[1727773507468,1.18040205,2647.5,2647.3,0.35699536]
[1727773507667,4.95754205,2647.5,2647.2,18.45]
[1727773507825,4.95754205,2647.5,2647.3,0.35699497]
[1727773508026,4.95754205,2647.5,2647.2,18.45]
[1727773508227,1.18040205,2647.5,2647.3,0.3569946]
[1727773508428,4.95741205,2647.6,2647.3,0.3569946]
[1727773508648,1.18040205,2647.5,2647.2,23.74074453]
[1727773508967,1.18040205,2647.5,2647.3,0.3569933]
[1727773509151,1.18040205,2647.5,2647.2,23.74074453]
[1727773509329,1.18040205,2647.5,2647.3,0.35699162]
[1727773509844,1.18040205,2647.5,2647.2,23.74074453]
[1727773510225,1.18040205,2647.5,2647.3,6.11295242]
[1727773510871,1.18040205,2647.5,2647.3,2.33554242]
[1727773511055,1.18040205,2647.5,2647.2,27.51834453]
[1727773511225,1.18040205,2647.5,2647.3,0.356996]
[1727773511431,1.18040205,2647.5,2647.2,27.51825453]
[1727773511645,4.95741205,2647.6,2647.3,0.35699386]
[1727773511847,4.95741205,2647.6,2647.2,27.51825453]
[1727773512060,1.18040205,2647.5,2647.3,0.356993]
[1727773512259,1.18040205,2647.5,2647.2,27.51825453]
[1727773512467,1.18040205,2647.5,2647.3,0.35699625]
[1727773512673,1.18040205,2647.5,2647.2,23.74075453]
[1727773512871,1.18040205,2647.5,2647.3,0.35699571]
[1727773513238,4.95755205,2647.5,2647.2,19.96328453]
[1727773513771,4.95755205,2647.5,2647.3,0.35700261]
[1727773513930,1.18040205,2647.5,2647.2,19.96328453]
[1727773514130,1.18040205,2647.5,2647.2,18.45]
[1727773514377,1.18040205,2647.5,2647.3,0.35700212]
[1727773514538,1.18040205,2647.5,2647.2,22.22755]
[1727773514738,1.18040205,2647.5,2647.3,0.35700956]
[1727773514945,1.18040205,2647.5,2647.2,22.22755]
[1727773515145,1.18040205,2647.5,2647.3,0.35701073]
[1727773515341,1.18040205,2647.6,2647.2,22.22755]
[1727773515549,1.18040205,2647.5,2647.2,24.76874859]
[1727773516160,1.18040205,2647.5,2647.3,3.77741]
[1727773516472,1.18040205,2647.5,2647.4,3.77729]
[1727773516708,1.18040205,2647.6,2647.4,3.77729]
[1727773517764,1.18040205,2647.6,2647.3,5.38311348]
[1727773517942,1.18040205,2647.6,2647.3,8.09961469]
[1727773518145,1.18040205,2647.6,2647.3,11.87698469]
[1727773518339,1.18040205,2647.6,2647.3,8.09961469]
[1727773518682,1.18040205,2647.5,2647.3,8.09961469]
[1727773518891,1.18040205,2647.5,2647.3,4.32224469]
[1727773519179,1.18040205,2647.5,2647.3,2.71650121]
[1727773519445,1.18040205,2647.5,2647.2,22.22757]
[1727773519776,1.95310205,2647.5,2647.2,18.45]
[1727773519961,4.95769205,2647.4,2647.1,19.2407]
[1727773520335,1.18040205,2647.4,2647.1,23.01835]
[1727773520683,5.73031205,2647.5,2647.1,19.2407]
[1727773520973,1.18040205,2647.4,2647.1,19.2407]
[1727773521153,1.18040205,2647.4,2647.1,25.55962359]
[1727773521357,1.18040205,2647.4,2647.1,18.45]
[1727773521554,3.77757,2647.2,2647.1,18.45]
[1727773521846,3.77757,2647.2,2646.8,3.77811]
[1727773521847,3.77777,2647.1,2646.8,18.45]
[1727773522048,4.96838348,2647.1,2646.8,18.45]
[1727773522640,8.74619348,2647.1,2646.8,18.45]
[1727773522844,1.19061348,2647.1,2646.9,0.55]
[1727773523185,1.19061348,2647.2,2647.0,1.60574348]
[1727773523769,1.19061348,2647.2,2647.0,5.38356348]
[1727773524680,1.19061348,2647.3,2647.1,4.58475]
[1727773524844,1.19061348,2647.4,2647.2,1.60574348]
[1727773525265,4.96791348,2647.4,2647.1,0.8071]
[1727773525508,1.19061348,2647.4,2647.1,4.58479]
[1727773525659,1.19061348,2647.5,2647.1,5.63661835]
[1727773525956,1.19061348,2647.5,2647.2,1.60574348]
[1727773528093,4.96794348,2647.4,2647.1,20.30892835]
[1727773528279,1.19061348,2647.4,2647.1,19.2571]
[1727773528918,4.96793348,2647.4,2647.1,19.2571]
[1727773529906,1.19061348,2647.4,2647.1,19.2571]
[1727773530378,4.96792348,2647.4,2647.1,19.2571]
[1727773531802,1.19061348,2647.4,2647.1,19.2571]
[1727773531963,1.19061348,2647.3,2647.1,23.03479]
[1727773532165,1.19061348,2647.4,2647.2,1.33644418]
[1727773532462,1.19061348,2647.4,2647.2,0.10030953]
[1727773533692,1.19061348,2647.4,2647.2,1.70605301]
[1727773533906,1.19061348,2647.5,2647.2,1.70605301]
[1727773534106,1.19061348,2647.5,2647.2,5.48360301]
[1727773534313,1.19061348,2647.5,2647.3,2.8518313]
[1727773534625,1.19061348,2647.5,2647.4,1.70548958]
[1727773534787,1.19061348,2647.6,2647.4,5.48277958]
[1727773535498,1.19061348,2647.6,2647.4,1.70548958]
[1727773537933,1.19061348,2647.8,2647.5,0.815]
[1727773538103,8.74387348,2647.9,2647.6,4.08807435]
[1727773538287,4.96720348,2647.9,2647.6,4.18764044]
[1727773538823,1.19061348,2647.9,2647.6,4.18764044]
[1727773538988,1.19061348,2647.9,2647.7,2.7305306]
[1727773539188,4.96705348,2648.0,2647.8,0.09938611]
[1727773539504,4.96705348,2648.0,2647.6,1.60574348]
[1727773539505,4.96705348,2648.0,2647.6,5.38272348]
[1727773539693,4.96705348,2648.0,2647.9,0.09929613]
[1727773539892,4.96705348,2648.0,2647.6,1.60574348]
[1727773540222,4.96639354,2648.0,2647.6,3.16379706]
[1727773540387,4.96639354,2648.0,2647.7,0.0994761]
[1727773540588,4.96659354,2647.9,2647.7,0.0994761]
[1727773540836,3.77672,2647.8,2647.7,0.0994761]
[1727773540982,3.77672,2647.8,2647.5,18.45]
[1727773541184,5.06096298,2647.9,2647.6,0.09956609]
[1727773541420,4.96654354,2647.9,2647.6,0.09956609]
[1727773541911,4.96668354,2647.8,2647.6,0.09956609]
[1727773542370,3.77673,2647.8,2647.6,0.09956609]
[1727773544171,3.77673,2647.8,2647.4,24.64656348]
[1727773544465,3.77673,2647.8,2647.4,27.48895683]
[1727773544640,3.77673,2647.8,2647.5,0.09390805]
[1727773545275,1.18995354,2647.9,2647.5,0.09390805]
[1727773545276,3.77658,2647.9,2647.5,0.16944365]
[1727773545429,3.77658,2647.9,2647.5,3.87102805]
[1727773546664,7.55324,2647.9,2647.5,0.09390805]
[1727773546829,3.77658,2647.9,2647.5,3.87103805]
[1727773548582,3.77673,2647.8,2647.5,0.09390805]
[1727773549966,4.96653354,2647.9,2647.5,0.09390805]
[1727773550943,3.77675,2647.8,2647.5,0.09390805]
[1727773551147,5.06097312,2647.9,2647.5,3.87104805]
[1727773551340,4.96640354,2648.0,2647.6,3.77699]
[1727773551746,4.96640354,2648.0,2647.7,0.09075715]
[1727773552372,8.74292354,2648.0,2647.7,0.09075715]
[1727773552573,4.96640354,2648.0,2647.7,0.09075715]
[1727773552794,1.18995354,2648.1,2647.8,0.8098]
[1727773553080,1.5738694,2648.2,2647.8,0.8098]
[1727773553081,4.96611354,2648.2,2647.9,0.09057718]
[1727773554165,1.18995354,2648.2,2647.9,0.09057718]
[1727773554350,4.96610354,2648.2,2647.9,0.09057718]
[1727773555144,3.7763,2648.1,2647.9,0.09057718]
[1727773555581,4.96611354,2648.2,2647.9,0.09057718]
[1727773557488,8.74213354,2648.3,2647.9,0.09057718]
[1727773557693,4.96603354,2648.3,2647.9,0.09057718]
[1727773557852,8.74216354,2648.3,2647.9,0.09057718]
[1727773558160,4.96603354,2648.3,2647.9,0.09057718]
[1727773558368,3.77608,2648.3,2647.9,7.94610773]
[1727773558561,3.77608,2648.3,2647.9,4.16959773]
[1727773558760,3.7762,2648.2,2647.9,4.16959773]
[1727773558966,3.77602,2648.3,2647.9,2.56385425]
[1727773559293,3.77602,2648.3,2647.9,1.69632066]
[1727773560597,3.77602,2648.3,2647.9,5.47282066]
[1727773561784,3.77602,2648.3,2647.9,1.69632066]
[1727773561969,3.77602,2648.3,2647.9,5.47282066]
[1727773563654,3.77602,2648.3,2647.9,1.69632066]
[1727773564512,3.7763,2648.1,2647.9,0.09057718]
[1727773567387,3.77617,2648.2,2647.9,0.09057718]
[1727773567871,3.87042836,2648.3,2647.9,0.09057718]
[1727773568067,3.87049836,2648.3,2647.9,0.09057718]
[1727773568303,3.77617,2648.2,2647.9,0.09057718]
[1727773568708,3.77631,2648.1,2647.9,0.09057718]
[1727773569503,3.77615,2648.2,2647.9,0.09057718]
[1727773569707,7.55243,2648.2,2647.9,0.09057718]
[1727773569912,3.77615,2648.2,2647.9,0.09057718]
[1727773570817,5.72002354,2648.4,2647.9,0.09057718]
[1727773570819,3.77643,2648.0,2647.9,0.09057718]
[1727773571180,3.77643,2648.0,2647.6,0.7566]
[1727773571403,3.77643,2648.0,2647.7,0.08519102]
[1727773571815,3.77672,2647.8,2647.7,0.08519102]
[1727773572618,3.77672,2647.8,2647.4,0.8076]
[1727773572914,3.77672,2647.8,2647.5,0.08278411]
[1727773573070,3.77693,2647.7,2647.5,0.08278411]
[1727773574012,3.87116347,2647.8,2647.5,0.08278411]
[1727773574183,4.57044,2647.8,2647.5,0.08278411]
[1727773574776,4.66486351,2647.8,2647.5,0.08278411]
[1727773574971,4.57044,2647.8,2647.5,0.08278411]
[1727773575861,4.96654354,2647.9,2647.5,0.08278411]
[1727773576010,3.77659,2647.9,2647.5,0.08278411]
[1727773576206,3.77676,2647.8,2647.5,0.08278411]
[1727773577031,4.96654354,2647.9,2647.5,0.08278411]
[1727773577351,5.06096709,2647.9,2647.5,0.08278411]
[1727773577649,3.77674,2647.8,2647.5,0.08278411]
[1727773577945,3.87116356,2647.8,2647.5,0.08278411]
[1727773578352,3.77674,2647.8,2647.5,0.08278411]
[1727773578554,3.7769,2647.7,2647.5,0.08278411]
[1727773579114,0.87362359,2647.6,2647.5,0.08278411]
[1727773579439,3.7772,2647.5,2647.2,0.39517858]
[1727773579816,3.7772,2647.5,2647.3,0.08300154]
[1727773579817,3.87163219,2647.5,2647.3,0.08300154]
[1727773580013,3.77729,2647.4,2647.1,0.7793]
[1727773580254,3.87163219,2647.5,2647.2,0.08306135]
[1727773580540,3.77739,2647.4,2647.2,0.08306135]
[1727773580619,3.87187027,2647.3,2647.2,0.08306135]
[1727773580819,4.68537027,2647.3,2646.9,0.814]
[1727773581019,3.7776,2647.2,2646.9,0.814]
[1727773581243,3.7776,2647.2,2647.0,0.08324141]
[1727773581860,4.68546027,2647.3,2647.0,0.08324141]
[1727773584131,0.90794027,2647.3,2647.0,0.08324141]
[1727773587116,0.09444027,2647.3,2647.0,5.46673489]
[1727773587325,0.09444027,2647.3,2647.0,1.68898489]
[1727773587814,0.09444027,2647.3,2647.0,5.46679489]
[1727773588455,0.09444197,2647.4,2647.0,5.46679489]
[1727773588859,3.87174197,2647.4,2647.0,5.46679489]
[1727773589158,0.09444197,2647.4,2647.0,5.46679489]
[1727773589663,0.09444197,2647.4,2647.0,6.47266438]
[1727773590254,4.59107,2647.5,2647.0,6.47266438]
[1727773590532,4.59107,2647.5,2647.0,5.46679489]
[1727773590667,0.8139,2647.5,2647.0,5.46678489]
[1727773591010,4.59105,2647.5,2647.0,1.68898489]
[1727773591179,4.59105,2647.5,2647.1,3.77771]
[1727773591391,3.77715,2647.5,2647.1,3.77771]
[1727773591721,3.77715,2647.5,2647.2,2.46090833]
[1727773591891,4.96702354,2647.6,2647.2,6.23846833]
[1727773592223,4.96687354,2647.7,2647.4,1.60574348]
[1727773592381,4.96682354,2647.7,2647.4,1.60574348]
[1727773592578,5.06116156,2647.8,2647.5,0.0828948]
[1727773592778,1.99655354,2647.9,2647.6,1.60574348]
[1727773592983,1.18995354,2648.1,2647.8,1.60574348]
[1727773593285,5.74331354,2648.2,2647.9,0.7839]
[1727773593492,0.09441443,2648.1,2648.0,0.08253953]
[1727773594528,0.09441443,2648.1,2647.7,0.7822]
[1727773594529,3.87070443,2648.1,2647.7,0.7822]
[1727773594889,3.87070443,2648.1,2647.8,0.08265343]
[1727773595089,3.87070443,2648.1,2647.7,0.7822]
[1727773595435,3.77653,2648.0,2647.8,0.08263142]
[1727773595798,3.77653,2648.0,2647.7,0.7822]
[1727773596123,3.77653,2648.0,2647.8,0.08263142]
[1727773596430,3.77653,2648.0,2647.7,0.7822]
[1727773596633,3.77653,2648.0,2647.9,0.08254143]
[1727773596832,3.77657,2647.9,2647.8,0.08263142]
[1727773597127,3.77674,2647.8,2647.4,6.14696348]
[1727773600296,3.77674,2647.8,2647.6,1.60574348]
[1727773601184,3.77653,2648.0,2647.6,1.60574348]
[1727773601387,3.77658,2647.9,2647.6,1.60574348]
[1727773601628,1.18995354,2648.2,2647.8,1.60574348]
[1727773601867,3.77623,2648.2,2647.8,1.60574348]
[1727773602000,3.77602,2648.3,2648.0,1.60574348]
[1727773602434,4.96583354,2648.4,2648.0,1.60574348]
[1727773602737,4.96583354,2648.4,2648.0,5.38217348]
[1727773602942,4.96583354,2648.4,2648.1,0.0797241]
[1727773603139,3.77588,2648.4,2648.1,0.0797241]
[1727773603341,4.96583354,2648.4,2648.1,0.0797241]
[1727773603645,3.77588,2648.4,2648.1,0.0797241]
[1727773603827,3.77603,2648.3,2648.1,0.0797241]
[1727773605608,3.77614,2648.2,2648.1,0.0797241]
[1727773606034,3.77614,2648.2,2647.8,1.60574348]
[1727773606240,3.77614,2648.2,2648.1,0.0772815]
[1727773606401,3.77614,2648.2,2647.8,1.60574348]
[1727773607042,3.77614,2648.2,2647.9,0.07502283]
[1727773608208,3.77616,2648.2,2647.9,0.07502283]
[1727773610155,3.77637,2648.1,2647.9,0.07502283]
[1727773610647,3.77637,2648.1,2647.8,1.60574348]
[1727773610955,3.77637,2648.1,2647.9,0.07502283]
[1727773612223,3.77616,2648.2,2647.9,0.07502283]
[1727773613091,3.87057039,2648.2,2647.9,0.07502283]
[1727773613428,3.77616,2648.2,2647.9,0.07502283]
[1727773614668,3.77631,2648.1,2647.9,0.07502283]
[1727773614971,3.77616,2648.2,2647.9,0.07502283]
[1727773615131,3.77636,2648.1,2647.9,0.07502283]
[1727773616155,7.64683045,2648.2,2647.9,0.07502283]
[1727773616896,3.87057045,2648.2,2647.9,0.07502283]
[1727773617194,3.77616,2648.2,2647.9,0.07502283]
[1727773618070,7.55241,2648.2,2647.9,0.07502283]
[1727773618320,3.77616,2648.2,2647.9,0.07502283]
[1727773618743,3.7763,2648.1,2647.9,0.07502283]
[1727773619104,3.77621,2648.2,2647.9,0.07502283]
[1727773619687,3.77643,2648.0,2647.9,0.07502283]
[1727773619903,1.28437919,2648.0,2647.3,0.8116]
[1727773620092,3.77691,2647.7,2647.3,0.8116]
[1727773620289,3.77701,2647.6,2647.4,0.0730636]
[1727773620444,3.77714,2647.5,2647.4,0.0730636]
[1727773620655,3.77714,2647.5,2647.1,0.39525253]
[1727773620656,3.77751,2647.3,2647.1,0.39525253]
[1727773620876,3.77767,2647.2,2646.8,0.7791]
[1727773621214,3.87218206,2647.1,2646.8,0.7791]
[1727773621361,3.77774,2647.1,2646.8,0.7791]
[1727773621760,3.77793,2647.0,2646.7,19.82532462]
[1727773622194,7.55587,2647.0,2646.7,19.82532462]
[1727773622355,7.55587,2647.0,2646.3,6.0057744]
[1727773622356,3.77856,2646.6,2646.1,26.84]
[1727773622567,3.7784,2646.7,2646.1,24.81481348]
[1727773622772,3.7784,2646.7,2646.2,3.77892]
[1727773622999,7.55676,2646.7,2646.1,24.81481348]
[1727773623162,3.77844,2646.6,2646.1,24.81481348]
[1727773623477,3.77858,2646.5,2646.1,23.97555783]
[1727773623789,3.77858,2646.5,2646.1,22.36981435]
[1727773625073,0.09446808,2646.6,2646.1,22.36981435]
[1727773625269,3.77834,2646.7,2646.2,3.48176999]
[1727773626076,3.77834,2646.7,2646.2,7.26075999]
[1727773626275,3.77834,2646.7,2646.3,2.96305743]
[1727773626513,1.18995354,2647.0,2646.4,3.77862]
[1727773626686,3.77784,2647.1,2646.5,8.05830999]
[1727773626901,4.56637,2647.3,2646.7,3.48176999]
[1727773627075,7.55501,2647.3,2646.7,3.48176999]
[1727773627273,7.55501,2647.3,2646.8,3.11141146]
[1727773627522,3.77757,2647.2,2646.8,3.11141146]
[1727773627691,3.77747,2647.3,2646.8,3.11141146]
[1727773627869,3.77758,2647.2,2646.8,3.11141146]
[1727773628270,3.77747,2647.3,2646.8,3.11141146]
[1727773628588,3.77744,2647.3,2646.9,4.14108813]
[1727773628791,4.56612,2647.5,2647.0,0.798]
[1727773628792,3.77722,2647.5,2647.0,0.798]
[1727773629003,3.77722,2647.5,2647.0,0.86238837]
[1727773629310,3.77731,2647.4,2647.0,0.86238837]
[1727773629467,3.77722,2647.5,2647.0,0.86238837]
[1727773629468,3.77722,2647.5,2647.0,2.04522332]
[1727773629675,7.55446,2647.5,2647.0,2.04522332]
[1727773629912,7.55447,2647.5,2647.0,2.04522332]
[1727773630122,3.77722,2647.5,2647.0,2.04522332]
[1727773630572,7.55446,2647.5,2647.0,2.04522332]
[1727773630768,3.77722,2647.5,2647.1,0.99643015]
[1727773631002,3.77722,2647.5,2647.2,0.0642083]
[1727773631409,3.7773,2647.4,2647.2,0.0642083]
[1727773632174,3.77693,2647.7,2647.3,3.48176999]
[1727773632379,3.77693,2647.7,2647.4,0.35459783]
[1727773632583,3.77693,2647.7,2647.4,0.06391469]
[1727773633121,1.96315354,2648.1,2647.4,0.06391469]
[1727773633401,3.77685,2647.8,2647.5,3.48176999]
[1727773633590,3.77685,2647.8,2647.5,3.54559467]
[1727773633790,3.77687,2647.7,2647.5,3.54559467]
[1727773634321,3.77675,2647.8,2647.5,0.06382468]
[1727773634474,0.7732,2648.1,2647.5,4.30276999]
[1727773634677,0.7732,2648.1,2647.7,3.48176999]
[1727773634678,3.77654,2648.0,2647.7,3.48176999]
[1727773634881,3.77654,2648.0,2647.8,0.0635547]
[1727773635079,7.55311,2648.0,2647.8,0.0635547]
[1727773635277,7.55311,2648.0,2647.5,4.30276999]
[1727773635278,3.77658,2647.9,2647.5,4.30276999]
[1727773635505,3.77658,2647.9,2647.5,7.43150099]
[1727773635712,3.77654,2648.0,2647.5,7.43150099]
[1727773635915,3.77629,2648.1,2647.7,3.48176999]
[1727773636506,3.77629,2648.1,2647.7,7.25862999]
[1727773636697,3.77616,2648.2,2647.7,7.25862999]
[1727773636880,3.77629,2648.1,2647.8,0.725863]
[1727773637589,3.77615,2648.2,2647.8,0.725863]
[1727773638194,3.77601,2648.3,2647.9,3.48176999]
[1727773638385,3.77601,2648.3,2648.0,0.788]
[1727773638386,3.77615,2648.2,2648.0,0.788]
[1727773640282,3.77601,2648.3,2648.0,0.788]
[1727773640819,7.55212,2648.3,2648.0,0.788]
[1727773641176,3.77615,2648.2,2648.0,0.788]
[1727773641381,3.77601,2648.3,2648.1,0.06306866]
[1727773641923,3.77614,2648.2,2648.1,0.06306866]
[1727773642134,3.776,2648.4,2648.1,0.06306866]
[1727773642625,0.8224,2648.8,2648.1,26.75110865]
[1727773642626,3.77569,2648.6,2648.1,26.75110865]
[1727773642787,3.77569,2648.6,2648.1,7.32110865]
[1727773643154,3.77575,2648.5,2648.2,0.55]
[1727773643282,3.77587,2648.4,2648.2,3.35891087]
[1727773643488,3.77587,2648.4,2648.3,0.06281454]
[1727773643705,3.77587,2648.4,2648.2,3.35891087]
[1727773643905,0.09439517,2648.6,2648.2,3.35891087]
[1727773644187,3.77586,2648.4,2648.3,0.06281454]
[1727773644589,3.77586,2648.4,2648.1,0.55]
[1727773644790,3.77586,2648.4,2648.3,0.06281454]
[1727773644987,3.77586,2648.4,2648.2,0.0629045]
[1727773645201,3.77559,2648.6,2648.3,0.06281454]
[1727773645540,3.77559,2648.6,2648.2,3.77606]
[1727773645903,3.77559,2648.6,2648.3,0.06281454]
[1727773646217,3.77559,2648.6,2648.2,3.77606]
[1727773646392,3.77559,2648.6,2648.4,0.06084763]
[1727773646592,3.77559,2648.6,2648.3,0.81266382]
[1727773646793,3.77574,2648.5,2648.3,0.7536]
[1727773647537,3.77574,2648.5,2648.2,19.43]
[1727773647749,3.77587,2648.4,2648.2,19.43]
[1727773647941,0.09439848,2648.4,2648.2,19.43]
[1727773648115,3.776,2648.3,2648.2,19.43]
[1727773650233,3.87040485,2648.3,2648.2,19.43]
[1727773650430,3.776,2648.3,2648.2,19.43]
[1727773653449,3.776,2648.3,2648.0,0.7808]
[1727773654660,3.77575,2648.5,2648.0,0.7808]
[1727773654661,3.77575,2648.5,2648.0,7.0284703]
[1727773654963,3.77594,2648.4,2648.0,3.2521203]
[1727773656040,3.77594,2648.4,2648.0,7.0285003]
[1727773656243,3.77575,2648.5,2648.1,3.77627]
[1727773656437,3.77575,2648.5,2648.1,3.83352024]
[1727773656657,3.77575,2648.5,2648.1,4.89026129]
[1727773656966,3.7756,2648.6,2648.1,4.89026129]
[1727773657135,4.57213,2648.7,2648.2,3.77607]
[1727773657471,3.77527,2648.9,2648.2,3.77607]
[1727773657472,3.77537,2648.8,2648.4,3.77586]
[1727773657534,3.77537,2648.8,2648.5,0.05689043]
[1727773658742,7.55079,2648.8,2648.5,0.05689043]
[1727773659137,3.77537,2648.8,2648.5,0.05689043]
[1727773659368,3.77549,2648.7,2648.5,0.05689043]
[1727773660876,3.77557,2648.6,2648.5,0.05689043]
[1727773661235,3.77557,2648.6,2648.3,20.222]
[1727773661556,3.86988303,2648.7,2648.4,0.05697164]
[1727773661740,3.77572,2648.5,2648.4,0.05697164]
[1727773663572,3.77559,2648.6,2648.4,0.05697164]
[1727773663869,3.77539,2648.8,2648.4,0.05697164]
[1727773664164,3.77544,2648.7,2648.5,3.48176999]
[1727773664372,3.77544,2648.7,2648.6,0.05488859]
[1727773664866,3.86982903,2648.7,2648.6,0.05488859]
[1727773665237,3.77561,2648.6,2648.3,4.27376999]
[1727773665441,3.87000546,2648.6,2648.4,0.427377]
[1727773665840,3.77561,2648.6,2648.4,0.427377]
[1727773666040,3.87000542,2648.6,2648.4,0.427377]
[1727773666682,3.77572,2648.5,2648.4,0.427377]
[1727773667877,0.09439548,2648.5,2648.1,22.91176999]
[1727773668078,3.77602,2648.3,2648.1,22.91176999]
[1727773668236,3.77597,2648.4,2648.1,3.48176999]
[1727773668649,7.55191,2648.4,2648.1,3.48176999]
[1727773668887,3.77606,2648.3,2648.0,22.6659203]
[1727773669131,3.87046351,2648.3,2648.0,22.6659203]
[1727773669453,3.87034352,2648.4,2648.0,22.6659203]
[1727773669669,7.5519,2648.4,2648.0,22.6659203]
[1727773669879,0.09440358,2648.4,2648.0,19.43]
[1727773670083,3.7762,2648.2,2648.0,19.43]
[1727773670240,3.7762,2648.2,2647.8,24.00514]
[1727773670580,3.77626,2648.2,2647.8,20.2285]
[1727773670952,3.77626,2648.2,2647.8,24.00521]
[1727773671157,3.77626,2648.2,2647.9,3.48176999]
[1727773671467,3.77592,2648.4,2648.1,3.48176999]
[1727773671848,3.77592,2648.4,2648.2,0.05532475]
[1727773672242,3.77573,2648.5,2648.2,0.05532475]
[1727773672505,3.77573,2648.5,2648.2,0.87432475]
[1727773673078,3.77588,2648.4,2648.2,0.87432475]
[1727773673282,3.77573,2648.5,2648.2,0.87432475]
[1727773673579,7.55156,2648.5,2648.2,0.87432475]
[1727773674172,3.77588,2648.4,2648.2,0.87432475]
[1727773676877,3.77588,2648.4,2648.2,1.68757422]
[1727773677082,4.96573354,2648.5,2648.2,1.68757422]
[1727773677649,3.77578,2648.5,2648.2,1.68757422]
[1727773678279,4.96573354,2648.5,2648.2,1.68757422]
[1727773679154,1.18995354,2648.4,2648.2,1.68757422]
[1727773680493,1.18995354,2648.4,2648.3,0.89456342]
[1727773680982,1.18995354,2648.4,2648.3,0.94508781]
[1727773681359,1.18995354,2648.4,2648.3,4.4268578]
[1727773681681,1.18995354,2648.4,2648.3,2.54927969]
[1727773681874,1.18995354,2648.5,2648.3,2.54927969]
[1727773682171,4.96571354,2648.5,2648.3,2.54927969]
[1727773682372,1.18995354,2648.4,2648.3,2.54927969]
[1727773683684,1.18995354,2648.4,2648.3,0.94508781]
[1727773686160,1.5738694,2648.8,2648.5,0.7808]
[1727773686391,1.09007008,2648.7,2648.6,0.5608813]
[1727773686600,3.7753,2648.8,2648.6,0.5608813]
[1727773689468,1.5738694,2648.9,2648.6,0.5608813]
[1727773690579,9.1239794,2649.0,2648.6,0.5608813]
[1727773690791,3.77519,2648.9,2648.6,0.5608813]
[1727773690995,5.3490594,2648.9,2648.6,0.5608813]
[1727773691302,3.7753,2648.8,2648.6,0.5608813]
[1727773693220,5.44346274,2648.9,2648.6,0.5608813]
[1727773694798,5.44341274,2648.9,2648.6,0.5608813]
[1727773695494,5.44341274,2648.9,2648.7,0.7598]
[1727773695495,1.18919146,2648.8,2648.7,0.7598]
[1727773695703,1.18919146,2648.9,2648.7,7.03586817]
[1727773695936,1.18919146,2649.0,2648.7,7.08599354]
[1727773696294,1.18919146,2649.0,2648.8,3.77529]
[1727773696536,1.18919146,2649.1,2648.9,1.08612835]
[1727773696692,4.96412146,2649.1,2648.9,1.13607389]
[1727773697436,1.18919146,2649.2,2648.9,4.61191847]
[1727773697640,1.18919146,2649.2,2648.9,8.38697847]
[1727773697800,4.96378146,2649.3,2648.9,8.38697847]
[1727773698006,4.96378146,2649.3,2649.0,0.83869785]
[1727773698206,4.96378146,2649.3,2649.1,0.04831839]
[1727773699203,1.18919146,2649.3,2649.1,0.82181839]
[1727773699404,3.77461,2649.3,2649.1,4.29766297]
[1727773699918,4.96363146,2649.4,2649.1,4.29766297]
[1727773700304,4.96363146,2649.4,2649.1,5.29741989]
[1727773700527,5.05796636,2649.5,2649.1,5.29741989]
[1727773701824,3.8687749,2649.5,2649.1,5.29741989]
[1727773702024,5.05796636,2649.5,2649.1,5.29741989]
[1727773702409,3.8687749,2649.5,2649.1,5.29741989]
[1727773702594,3.77458,2649.3,2649.2,0.99110377]
[1727773702799,3.77472,2649.2,2648.8,20.2029]
[1727773703040,3.77491,2649.1,2648.8,20.2029]
[1727773703706,3.77501,2649.0,2648.8,0.7729]
[1727773704049,3.77472,2649.2,2648.9,1.60381394]
[1727773704218,3.77472,2649.2,2648.9,3.28270442]
[1727773704739,3.77451,2649.4,2649.1,1.60381394]
[1727773704945,4.96349146,2649.5,2649.1,1.60381394]
[1727773705257,3.86866421,2649.5,2649.1,1.60381394]
[1727773705435,3.86869421,2649.5,2649.1,1.60381394]
[1727773705636,3.86869421,2649.5,2649.3,1.60381394]
[1727773707423,3.77433,2649.5,2649.3,1.60381394]
[1727773707737,3.77433,2649.5,2649.2,1.32848039]
[1727773708234,3.86869424,2649.5,2649.2,1.32848039]
[1727773708434,3.77444,2649.4,2649.2,1.32848039]
[1727773709305,3.77444,2649.4,2649.1,1.60381394]
[1727773710423,3.77425,2649.6,2649.3,1.60381394]
[1727773710786,3.77429,2649.5,2649.3,1.60381394]
[1727773711836,7.64287,2649.6,2649.3,1.60381394]
[1727773712056,3.86861,2649.6,2649.3,1.60381394]
[1727773712402,3.77425,2649.6,2649.3,1.60381394]
[1727773712702,3.77425,2649.6,2649.1,21.03381394]
[1727773712703,3.77437,2649.5,2649.1,21.03381394]
[1727773712902,3.77437,2649.5,2649.2,2.55800539]
[1727773713399,5.05763156,2649.7,2649.3,1.60381394]